[Event "Satka Autumn 2018"]
[Site "Satka"]
[Date "2018.09.18"]
[Round "8"]
[White "Matsenko, Elena"]
[Black "Telelyukhina, Elizaveta"]
[Result "1-0"]
[ECO "B40"]
[WhiteElo "1854"]
[BlackElo "1403"]
[Annotator "NA"]
[PlyCount "81"]
[EventDate "2018.09.11"]
[EventType "swiss"]
[EventCountry "RUS"]
[SourceTitle "playchess.com"]
[Source "ChessBase"]
[SourceQuality "1"]
[TimeControl "40/5400+30:1800+30"]

{[%evp 8,73,21,20,32767,32767,32767,32767,32767,32767,79,79,87,62,69,68,80,32767,32767,32767,32767,11,111,56,72,-52,-23,32767,32767,32767,-54,-57,-51,-64,-53,-69,-45,-37,-25,-49,-37,-47,0,-63,-25,-39,-45,-28,-20,-18,-9,-199,29,-53,-24,-11,0,-16,0,-54,-32,32767,32767,32767,32767,32767,-27,-24]} 1. e4 {[%emt 0:00:00]} c5 {[%emt 0:00:00]} 2. Nf3 {[%emt 0:00:00]} e6 {[%emt 0:00:00]} 3. b3 {[%emt 0:00:00]} Nc6 {[%emt 0:00:15]} 4. Bb2 {[%emt 0:00:00]} Nf6 {[%emt 0:00:39] LiveBook: 149 Games} 5. e5 {[%emt 0:00:15]} Nd5 {[%emt 0:00:45]} 6. c4 {[%emt 0:00:13]} Nf4 {[%emt 0:01:40]} 7. g3 {[%emt 0:00:12] B40: Sicilian: 2...e6, Unusual lines} Ng6 {[%emt 0:00:21]} 8. Bg2 {[%emt 0:00:25]} Qc7 {[%emt 0:05:33]} (8... d5 $11 {remains equal.}) (8... Be7 9. O-O O-O 10. Na3 a6 11. Nc2 Qc7 12. Qe2 b6 13. d4 cxd4 14. Ncxd4 Bb7 {1-0 (38) Hossain,E (2452)-Tran,M (2409) Chengdu 2017}) 9. Qe2 {[%emt 0:00:21]} Be7 {[%emt 0:02:55]} 10. O-O {[%emt 0:00:17]} O-O $1 {[%emt 0:00:31]} 11. h4 {[%emt 0:00:24]} f6 {[%emt 0:02:34]} 12. exf6 {[%emt 0:01:31]} Bxf6 {[%emt 0:00:15]} 13. Nc3 $146 {[%emt 0:00:24]} ({Predecessor:} 13. Bxf6 Rxf6 14. Nc3 a6 {0-1 (47) Chandler,P (2206)-Langenfeld,O (2033) Frankfurt 2011}) 13... a6 {[%emt 0:00:25]} 14. Rad1 {[%emt 0:02:46]} b6 {[%emt 0:02:15]} (14... Nge7 $11) 15. h5 {[%emt 0:06:06]} Nge7 {[%emt 0:00:36]} 16. d3 {[%emt 0:00:54]} (16. d4 $1 $14) 16... Bb7 {[%emt 0:01:46]} 17. Ne4 {[%emt 0:00:59]} Bxb2 {[%emt 0:01:14]} 18. Qxb2 {[%emt 0:00:04]} Nf5 $1 {[%emt 0:01:09]} 19. Qe2 {[%emt 0:07:29]} Ncd4 {[%emt 0:04:06]} 20. Nxd4 {[%emt 0:00:16]} Nxd4 {[%emt 0:00:13]} 21. Qg4 {[%emt 0:02:37]} h6 {[%emt 0:02:28]} 22. f4 {[%emt 0:06:43]} Rf5 {[%emt 0:07:25]} 23. Rf2 {[%emt 0:03:42]} Raf8 {[%emt 0:02:04]} 24. Rdf1 {[%emt 0:07:39]} d5 {[%emt 0:02:48]} ({Günstiger ist} 24... d6 $15) 25. Nc3 {[%emt 0:06:26]} ({Better is} 25. Nd2 $11) 25... b5 {[%emt 0:02:43]} 26. cxb5 {[%emt 0:03:56]} axb5 {[%emt 0:00:10]} 27. Ne2 {[%emt 0:00:29]} Nc2 {[%emt 0:07:40]} 28. Qf3 {[%emt 0:06:22]} Qa5 {[%emt 0:08:24]} 29. Rc1 $2 {[%emt 0:07:13]} (29. d4 $11) 29... Nb4 $2 {[%emt 0:00:39]} ({Better is} 29... Ne1 $19 30. Qe3 Nxg2 31. Qxe6+ Kh8 32. Kxg2 d4+ 33. Kf1 Rxh5) 30. Nc3 {[%emt 0:06:14]} (30. d4 $14) 30... Bc6 {[%emt 0:02:22]} (30... Qb6 $17) 31. Qe2 {[%emt 0:02:05]} Bd7 {[%emt 0:01:31]} 32. Bh3 {[%emt 0:00:37]} R5f6 {[%emt 0:00:26]} 33. Rff1 {[%emt 0:03:29]} Rc8 $15 {[%emt 0:03:06]} 34. Rfe1 {[%emt 0:02:22]} c4 {[%emt 0:02:57]} 35. dxc4 {[%emt 0:00:29]} bxc4 {[%emt 0:00:14]} 36. bxc4 {[%emt 0:01:27]} Rxc4 {[%emt 0:00:24]} 37. Kh2 {[%emt 0:01:26]} Qc5 {[%emt 0:10:23]} 38. Ne4 {[%emt 0:05:06]} Rxc1 {[%emt 0:03:35]} 39. Nxc5 {[%emt 0:00:32]} Rxc5 {[%emt 0:00:07]} 40. Qe5 {[%emt 0:00:00]} Nd3 {[%emt 0:00:00]} 41. Qe3 {[%emt 0:02:16]} 1-0

[Event "Satka Autumn 2018"]
[Site "Satka"]
[Date "2018.09.18"]
[Round "8"]
[White "Mikheeva, Galina"]
[Black "Lapteva, Yulia"]
[Result "1-0"]
[ECO "C47"]
[WhiteElo "1767"]
[BlackElo "1074"]
[Annotator "NA RC"]
[PlyCount "65"]
[EventDate "2018.09.11"]
[EventType "swiss"]
[EventCountry "RUS"]
[SourceTitle "playchess.com"]
[Source "ChessBase"]
[SourceQuality "1"]
[TimeControl "40/5400+30:1800+30"]

1. e4 {[%emt 0:00:00]} e5 {[%emt 0:00:00]} 2. Nf3 {[%emt 0:00:00]} Nf6 {[%emt 0:00:00]} 3. Nc3 {[%emt 0:00:16]} Nc6 {[%emt 0:00:00]} 4. d4 {[%emt 0:00:05]} exd4 {[%emt 0:00:00]} 5. Nxd4 {[%emt 0:00:04]} Bb4 {[%emt 0:00:00]} 6. Nxc6 {[%emt 0:00:07]} bxc6 {[%emt 0:00:04]} 7. Bd3 {[%emt 0:00:04]} d5 {[%emt 0:00:31]} 8. exd5 {[%emt 0:00:07]} cxd5 {[%emt 0:00:10]} 9. Qe2+ {[%emt 0:00:04]} Qe7 {[%emt 0:02:53]} 10. Qxe7+ {[%emt 0:00:16]} Kxe7 {[%emt 0:00:05]} 11. O-O {[%emt 0:00:30]} h6 {[%emt 0:04:01]} 12. Bf4 {[%emt 0:08:58]} c6 {[%emt 0:01:47]} 13. Rfe1+ {[%emt 0:07:21]} Be6 {[%emt 0:02:46]} 14. Bd2 {[%emt 0:12:34]} Bd6 {[%emt 0:04:39]} 15. Re2 {[%emt 0:07:20]} Rhe8 {[%emt 0:01:03]} 16. Rae1 {[%emt 0:00:06]} Kd7 {[%emt 0:04:46]} 17. Na4 {[%emt 0:02:42]} Bg4 {[%emt 0:05:40]} 18. f3 {[%emt 0:00:05]} Rxe2 {[%emt 0:01:03]} 19. Rxe2 {[%emt 0:00:12]} Be6 {[%emt 0:00:21]} 20. Be3 {[%emt 0:00:48]} Nh5 {[%emt 0:20:43]} 21. g3 {[%emt 0:01:16]} Kc7 {[%emt 0:12:22]} 22. Nc5 {[%emt 0:02:41]} a5 {[%emt 0:02:18]} 23. Bd4 {[%emt 0:04:07]} Re8 {[%emt 0:04:33]} 24. f4 {[%emt 0:08:52]} Bxc5 {[%emt 0:04:17]} 25. Bxc5 {[%emt 0:00:21]} Kd7 {[%emt 0:00:47]} 26. f5 {[%emt 0:01:04]} Nf6 {[%emt 0:03:53]} 27. fxe6+ fxe6 {[%emt 0:00:36]} 28. Bd4 {[%emt 0:02:42]} Kd6 {[%emt 0:00:46]} 29. Be5+ {[%emt 0:00:06]} Ke7 {[%emt 0:01:12]} 30. Bc3 {[%emt 0:00:35]} Kf7 {[%emt 0:00:51]} 31. Bxa5 {[%emt 0:01:42]} Ra8 {[%emt 0:00:08]} 32. b4 {[%emt 0:00:09]} Ke7 {[%emt 0:01:55]} 33. Bf5 {[%emt 0:00:41]} 1-0

[Event "Satka Autumn 2018"]
[Site "Satka"]
[Date "2018.09.18"]
[Round "8"]
[White "Svetlova, Ksenia"]
[Black "Stroganova, Karina"]
[Result "1-0"]
[ECO "B01"]
[WhiteElo "1696"]
[BlackElo "1711"]
[Annotator "NA RC"]
[PlyCount "39"]
[EventDate "2018.09.11"]
[EventType "swiss"]
[EventCountry "RUS"]
[SourceTitle "playchess.com"]
[Source "ChessBase"]
[SourceQuality "1"]
[TimeControl "40/5400+30:1800+30"]

1. e4 {[%emt 0:00:00]} d5 {[%emt 0:00:00]} 2. exd5 {[%emt 0:00:00]} Qxd5 {[%emt 0:00:00]} 3. Nc3 {[%emt 0:00:00]} Qd6 {[%emt 0:00:00]} 4. d4 {[%emt 0:00:00]} Nf6 {[%emt 0:00:43]} 5. Nf3 {[%emt 0:00:59]} c6 {[%emt 0:01:58]} 6. g3 {[%emt 0:01:44]} Bg4 {[%emt 0:00:43]} 7. Be2 {[%emt 0:00:50]} Nbd7 {[%emt 0:02:17]} 8. Bf4 {[%emt 0:04:09]} Qb4 {[%emt 0:00:18]} 9. O-O {[%emt 0:01:09]} e6 {[%emt 0:00:44]} 10. a3 {[%emt 0:00:46]} Qa5 {[%emt 0:02:46]} 11. b4 {[%emt 0:07:16]} Qh5 {[%emt 0:02:34]} 12. Ne5 {[%emt 0:10:41]} Bxe2 {[%emt 0:04:08]} 13. Qxe2 {[%emt 0:00:47]} Qh3 {[%emt 0:01:37]} 14. Nxd7 {[%emt 0:03:51]} Kxd7 {[%emt 0:00:48]} 15. Rad1 {[%emt 0:17:44]} Nd5 {[%emt 0:09:49]} 16. Nxd5 {[%emt 0:00:40]} exd5 {[%emt 0:00:25]} 17. b5 {[%emt 0:00:32]} Bxa3 {[%emt 0:01:31]} 18. bxc6+ {[%emt 0:00:57]} bxc6 {[%emt 0:00:05]} 19. Qa6 {[%emt 0:00:29]} Bf8 {[%emt 0:01:59]} 20. Qb7+ {[%emt 0:00:04]} 1-0

[Event "Satka Autumn 2018"]
[Site "Satka"]
[Date "2018.09.18"]
[Round "8"]
[White "Aleshina, Arina"]
[Black "Nasybullina, Dayana"]
[Result "0-1"]
[ECO "B80"]
[WhiteElo "1319"]
[BlackElo "1809"]
[Annotator "NA"]
[PlyCount "114"]
[EventDate "2018.09.11"]
[EventType "swiss"]
[EventCountry "RUS"]
[SourceTitle "playchess.com"]
[Source "ChessBase"]
[SourceQuality "1"]
[TimeControl "40/5400+30:1800+30"]

{[%evp 11,89,22,33,29,105,75,66,56,94,32767,32767,32767,32767,35,56,38,32767,0,68,48,64,58,43,15,64,50,54,22,37,-35,50,39,123,13,35,26,37,31,41,42,82,103,32767,32767,32767,32767,27,45,79,-3,45,37,32767,32767,32767,32767,32767,32767,32767,0,0,0,5,-9,81,32767,32767,32767,32767,32767,32767,32767,32767,32767,32767,32767,32767,-200,-200,-207]} 1. e4 {[%emt 0:00:00]} c5 {[%emt 0:00:00]} 2. Nf3 {[%emt 0:00:00]} e6 {[%emt 0:00:00]} 3. d4 {[%emt 0:00:00]} cxd4 {[%emt 0:00:09]} 4. Nxd4 {[%emt 0:00:00]} Nf6 {[%emt 0:00:07]} 5. Nc3 {[%emt 0:00:00]} d6 {[%emt 0:00:22]} 6. f3 {[%emt 0:00:21]} Be7 {[%emt 0:00:48]} 7. Be3 {[%emt 0:00:08]} Qb6 {[%emt 0:02:37] B80: Sizilianisch (Scheveninger System)} (7... O-O $11 8. Qd2 Nc6 9. O-O-O d5 10. Be2 dxe4 11. Nxc6 bxc6 12. Qxd8 Bxd8 13. Nxe4 Nxe4 14. fxe4 Bb6 15. Bxb6 axb6 16. Kb1 Ba6 17. Bxa6 Rxa6 18. Rd6 {1-0 (34) Shankland,S (2727)-Duda,J (2737) Danzhou 2018}) 8. Qc1 $146 {[%emt 0:02:31]} ({White should play Vorgänger:} 8. Qd2 Qd8 9. O-O-O (9. Bb5+ Bd7 10. Bxd7+ Nbxd7 11. Rd1 a6 12. O-O O-O 13. Nde2 Ne5 14. Ng3 Nc4 15. Qc1 {0-1 (25) Nadinsky,V-Slivko,V Nikolaev 2009})) 8... Qa5 {[%emt 0:05:39]} 9. Nb3 {[%emt 0:04:48]} Qd8 {[%emt 0:00:22]} 10. Be2 {[%emt 0:01:50]} O-O {[%emt 0:00:36]} 11. O-O {[%emt 0:00:27]} a6 {[%emt 0:00:36]} 12. Na4 {[%emt 0:04:14]} Nbd7 {[%emt 0:01:27]} 13. c4 $1 {[%emt 0:08:04]} Qc7 {[%emt 0:01:38]} 14. Nd4 {[%emt 0:04:42]} (14. Rd1 $14) 14... b6 {[%emt 0:06:40]} (14... Ne5 $11) 15. Qc2 {[%emt 0:04:51]} Bb7 {[%emt 0:01:35]} 16. Rac1 {[%emt 0:01:27]} Rac8 {[%emt 0:00:39]} 17. Rfd1 {[%emt 0:01:05]} Nc5 {[%emt 0:05:47]} 18. Nc3 {[%emt 0:05:19]} Rfd8 {[%emt 0:04:52]} 19. Rd2 {[%emt 0:01:57]} Ncd7 {[%emt 0:08:54]} 20. b3 {[%emt 0:00:20]} (20. Qd1 $14) 20... Nb8 {[%emt 0:06:00]} (20... d5 $11) 21. Bf1 {[%emt 0:02:08]} Nc6 {[%emt 0:01:39] [#]} ({Better is} 21... Nbd7 $14) 22. Nce2 {[%emt 0:03:25]} (22. Nd5 $1 $16 {[%cal Rd5c7]} Nxd4 23. Nxe7+ Qxe7 24. Bxd4) 22... Nxd4 {[%emt 0:00:47]} 23. Nxd4 {[%emt 0:00:30]} h6 {[%emt 0:03:10]} 24. Rdd1 {[%emt 0:02:05]} Qb8 {[%emt 0:03:35]} 25. Qf2 {[%emt 0:00:12]} d5 {[%emt 0:00:38]} 26. exd5 {[%emt 0:00:26]} Ba3 {[%emt 0:03:54]} 27. Rb1 {[%emt 0:01:00]} exd5 {[%emt 0:00:31]} 28. Nf5 {[%emt 0:00:36]} Qe5 {[%emt 0:03:45]} 29. Ng3 {[%emt 0:07:57]} Rd6 {[%emt 0:15:02] [#]} 30. Kh1 {[%emt 0:03:18]} (30. Re1 $1 $16 Rd7 31. Bxb6) 30... Bc5 {[%emt 0:02:04]} 31. Bxc5 {[%emt 0:01:29]} bxc5 {[%emt 0:00:28]} 32. cxd5 {[%emt 0:00:25]} Rxd5 {[%emt 0:00:29]} 33. Bc4 {[%emt 0:00:13]} Rxd1+ {[%emt 0:01:04]} 34. Rxd1 {[%emt 0:01:53]} Re8 {[%emt 0:02:06]} 35. Qf1 {[%emt 0:03:52]} Nd5 {[%emt 0:07:42]} 36. Bxd5 {[%emt 0:03:04]} Bxd5 {[%emt 0:00:07]} 37. Qxa6 {[%emt 0:00:34]} Ra8 {[%emt 0:01:21]} (37... c4 $11 38. Rg1 cxb3 39. axb3 Bxb3) 38. Qd3 {[%emt 0:00:46]} Rxa2 {[%emt 0:00:45]} 39. Nf1 {[%emt 0:01:10]} Be6 {[%emt 0:03:49]} 40. Qd8+ {[%emt 0:00:00]} Kh7 {[%emt 0:00:00]} 41. Qd3+ {[%emt 0:02:38]} g6 {[%emt 0:01:51]} 42. Nd2 {[%emt 0:03:59]} Qb2 {[%emt 0:04:24]} 43. h3 {[%emt 0:02:16]} Kg7 {[%emt 0:06:13]} 44. Qe3 {[%emt 0:02:27]} (44. Kg1 $17) 44... Qc2 {[%emt 0:00:57]} 45. Qg1 $19 {[%emt 0:01:52]} Bxb3 {[%emt 0:01:00]} 46. Nxb3 {[%emt 0:00:06]} Qxb3 {[%emt 0:00:09]} 47. Rc1 {[%emt 0:00:10]} Rc2 {[%emt 0:00:47]} 48. Rxc2 {[%emt 0:00:21]} Qxc2 {[%emt 0:00:05]} 49. Qe3 {[%emt 0:00:03]} Qd1+ {[%emt 0:01:19]} 50. Kh2 {[%emt 0:00:06]} Qd6+ {[%emt 0:00:16]} 51. Kh1 {[%emt 0:00:04]} Qd4 {[%emt 0:00:30]} 52. Qc1 {[%emt 0:00:28]} c4 {[%emt 0:00:08]} 53. Qc2 {[%emt 0:00:09]} c3 {[%emt 0:00:06]} 54. Kh2 {[%emt 0:00:12]} Qf4+ {[%emt 0:02:21]} 55. Kh1 {[%emt 0:00:10]} Qd2 {[%emt 0:00:21]} 56. Qe4 {[%emt 0:00:18]} c2 {[%emt 0:00:09]} 57. Qe5+ {[%emt 0:00:02]} Kh7 {[%emt 0:00:05]} 0-1

[Event "Satka Autumn 2018"]
[Site "Satka"]
[Date "2018.09.18"]
[Round "8"]
[White "Kargina, Diana"]
[Black "Sosnina, Ekaterina"]
[Result "0-1"]
[ECO "B01"]
[WhiteElo "1093"]
[BlackElo "1955"]
[Annotator "NA RC"]
[PlyCount "66"]
[EventDate "2018.09.11"]
[EventType "swiss"]
[EventCountry "RUS"]
[SourceTitle "playchess.com"]
[Source "ChessBase"]
[SourceQuality "1"]
[TimeControl "40/5400+30:1800+30"]

{[%evp 8,66,49,25,32767,32767,32767,32767,32767,32767,58,64,61,29,52,37,120,65,83,-75,-66,32767,32767,32767,32767,32767,32767,32767,-79,-116,-91,-147,-125,-329,-329,32767,-25,-74,-50,-50,-59,-65,-78,-76,0,-43,32767,32767,32767,32767,32767,32767,32767,32767,32767,-422,-739,-29980,-1106,-5885,-29986]} 1. e4 {[%emt 0:00:00]} d5 {[%emt 0:00:00]} 2. exd5 {[%emt 0:00:00]} Nf6 {[%emt 0:00:00]} 3. Nc3 {[%emt 0:00:00]} Nxd5 {[%emt 0:00:01]} 4. d4 {[%emt 0:00:21]} Nc6 {[%emt 0:00:18]} 5. Nf3 {[%emt 0:00:17]} Bf5 {[%emt 0:00:57] B02: Aljechin-Verteidigung (Jagdvariante)} (5... Bg4 6. Be2 e6 7. O-O Nf6 8. h3 Bh5 9. Bb5 Bd6 10. Bg5 O-O 11. Bxc6 bxc6 12. Ne4 Be7 13. Bxf6 gxf6 {1-0 (27) Mamedov,R (2647)-Li,W (2424) Al Ain 2012}) 6. Bd3 {[%emt 0:01:04]} Bg6 $146 {[%emt 0:00:08]} ({Vorgänger:} 6... Bxd3 7. Qxd3 e6 8. O-O Be7 9. Ne4 Qd7 10. a3 O-O-O 11. c4 Nf6 12. Be3 h6 13. Rfd1 {1-0 (32) Forgo,E (2155)-Legman,M (1994) Hungary 2014}) 7. Be3 {[%emt 0:00:33]} e6 {[%emt 0:00:47]} 8. O-O {[%emt 0:00:33]} Ncb4 {[%emt 0:06:55]} 9. Bxg6 {[%emt 0:01:02]} hxg6 {[%emt 0:00:03]} 10. Nxd5 {[%emt 0:00:09]} Nxd5 {[%emt 0:00:07]} 11. c4 {[%emt 0:00:30]} Nb6 {[%emt 0:00:10]} (11... Nxe3 $14 12. fxe3 c6) 12. b3 {[%emt 0:00:16]} Bd6 {[%emt 0:01:16]} 13. Qd3 $2 {[%emt 0:00:32] [#]} ({Worse is} 13. c5 Bxh2+ 14. Nxh2 Qh4 $17) (13. h4 $16 {stays on course.}) 13... Bxh2+ $1 {[%emt 0:00:41]} 14. Nxh2 {[%emt 0:02:12]} Qh4 {[%emt 0:00:03]} 15. f3 {[%emt 0:00:45]} Qxh2+ {[%emt 0:00:05]} 16. Kf2 {[%emt 0:00:25]} Qh4+ {[%emt 0:00:11]} 17. Kg1 {[%emt 0:00:14]} O-O-O {[%emt 0:06:23]} 18. Rfd1 {[%emt 0:01:20]} Qg3 {[%emt 0:01:34]} 19. Qe4 {[%emt 0:02:47]} Rh2 {[%emt 0:00:28]} 20. Qc2 $2 {[%emt 0:01:46]} (20. Rd2 $17 Rdh8 21. Kf1) 20... Rdh8 {[%emt 0:00:10]} 21. Kf1 {[%emt 0:00:47] [#]} f5 $2 {[%emt 0:07:18]} (21... Qxf3+ $1 $19 {[%mdl 512]} 22. gxf3 Rxc2) 22. Qd2 {[%emt 0:01:02]} g5 {[%emt 0:13:21]} 23. Qf2 {[%emt 0:02:07]} Qxf2+ {[%emt 0:03:40]} 24. Bxf2 {[%emt 0:02:43]} Nd7 {[%emt 0:05:44]} 25. Re1 {[%emt 0:01:14]} Nf8 {[%emt 0:00:10]} ({Black should try} 25... Rh1+ $15 26. Ke2 R1h2) 26. Rad1 {[%emt 0:00:27]} Ng6 {[%emt 0:02:08]} 27. Bg1 {[%emt 0:01:00]} Rh1 {[%emt 0:01:39]} 28. Rxe6 {[%emt 0:00:25]} Nf4 {[%emt 0:00:03]} 29. Re5 {[%emt 0:01:39]} R8h2 {[%emt 0:00:07]} 30. Rd2 {[%emt 0:01:18]} Nh3 {[%emt 0:00:06]} 31. Re8+ {[%emt 0:01:05]} Kd7 {[%emt 0:00:06]} 32. Rh8 {[%emt 0:00:13]} Rxg1+ {[%emt 0:00:20]} 33. Ke2 {[%emt 0:01:28]} Rgxg2+ {[%emt 0:00:08]} 0-1

[Event "Satka Autumn 2018"]
[Site "Satka"]
[Date "2018.09.19"]
[Round "9"]
[White "Filippova, Darya"]
[Black "Matsenko, Elena"]
[Result "1-0"]
[ECO "A17"]
[WhiteElo "2061"]
[BlackElo "1854"]
[Annotator "NA RC"]
[PlyCount "81"]
[EventDate "2018.09.11"]
[EventType "swiss"]
[EventCountry "RUS"]
[SourceTitle "playchess.com"]
[Source "ChessBase"]
[SourceQuality "1"]
[TimeControl "40/5400+30:1800+30"]

{[%evp 8,81,10,0,-3,0,10,-4,40,30,28,27,27,26,37,31,60,33,41,27,29,14,8,18,20,14,22,18,23,9,18,6,31,27,33,0,16,0,0,0,0,-28,-27,-39,-23,-45,-23,-28,0,0,8,0,18,8,9,0,33,14,23,14,12,0,16,0,20,0,222,231,254,189,418,461,858,954,1694,1990]} 1. c4 {[%emt 0:00:00]} Nf6 {[%emt 0:00:00]} 2. Nc3 {[%emt 0:00:00]} e6 {[%emt 0:00:00]} 3. Nf3 {[%emt 0:02:29]} d5 {[%emt 0:00:13]} 4. cxd5 {[%emt 0:00:49]} exd5 {[%emt 0:00:05]} 5. d4 {[%emt 0:00:06]} c6 {[%emt 0:00:22]} 6. Qc2 {[%emt 0:05:26]} Be7 {[%emt 0:04:20]} 7. Bf4 {[%emt 0:02:12]} Nbd7 {[%emt 0:00:51]} 8. h3 {[%emt 0:03:01]} Nf8 {[%emt 0:02:21]} 9. e3 {[%emt 0:03:16]} Ne6 {[%emt 0:00:25] D35: Queen's Gambit Declined: Exchange Variation} 10. Bh2 {[%emt 0:01:11] LiveBook: 7 Games} Bd6 {[%emt 0:02:29]} 11. Bxd6 {[%emt 0:01:54]} Qxd6 {[%emt 0:00:07]} 12. Bd3 {[%emt 0:01:17]} g6 {[%emt 0:00:24]} 13. O-O $146 {[%emt 0:00:53]} ({Predecessor:} 13. O-O-O Bd7 14. Kb1 O-O-O 15. Nb5 Qb4 16. Ne5 Kb8 17. Nc3 {½-½ (40) Parligras,M (2613)-Kuzubov,Y (2690) Hungary 2017}) 13... O-O {[%emt 0:00:12]} 14. Rab1 {[%emt 0:06:26]} Ng7 {[%emt 0:00:49]} 15. b4 {[%emt 0:02:31]} a6 {[%emt 0:01:49]} 16. Na4 {[%emt 0:02:33]} Bf5 {[%emt 0:00:58]} 17. Nc5 {[%emt 0:01:32]} Bxd3 {[%emt 0:01:23]} 18. Qxd3 {[%emt 0:00:35]} Qe7 {[%emt 0:00:34]} 19. Ne5 {[%emt 0:05:10]} Nf5 {[%emt 0:01:56]} 20. a4 {[%emt 0:04:34]} Nd6 {[%emt 0:00:34]} 21. Rfc1 {[%emt 0:02:05]} Rfe8 {[%emt 0:04:30]} 22. Rb3 {[%emt 0:04:25]} Kg7 {[%emt 0:05:14]} 23. Qe2 {[%emt 0:04:34]} Nfe4 {[%emt 0:01:55]} 24. f3 {[%emt 0:07:58]} Ng5 {[%emt 0:03:29]} 25. Qf2 {[%emt 0:10:23]} f6 {[%emt 0:00:51]} 26. Ng4 {[%emt 0:00:26]} h5 {[%emt 0:03:11]} 27. Nh2 $1 {[%emt 0:01:06]} Ngf7 {[%emt 0:04:06]} 28. Nf1 {[%emt 0:01:04]} f5 {[%emt 0:06:07]} 29. f4 {[%emt 0:03:14]} Qd8 {[%emt 0:07:12]} 30. Nd2 {[%emt 0:01:36]} Qe7 {[%emt 0:02:48]} 31. Nf3 {[%emt 0:03:34]} Ne4 {[%emt 0:04:41]} 32. Qe1 {[%emt 0:01:54]} Nfd6 {[%emt 0:02:15]} 33. Ne5 {[%emt 0:00:16]} Rac8 {[%emt 0:04:01]} 34. Ncd3 {[%emt 0:00:41]} Ra8 {[%emt 0:01:19]} 35. Rc2 {[%emt 0:00:45]} Rh8 {[%emt 0:03:03]} 36. Qc1 {[%emt 0:00:44]} Rad8 $2 {[%emt 0:03:19] [#]} (36... Rac8 $11 {und Schwarz ist OK.}) 37. b5 $1 {[%emt 0:01:30]} axb5 {[%emt 0:06:55]} 38. axb5 {[%emt 0:00:07]} Nc4 $2 {[%emt 0:04:39]} ({Viel schlechter ist} 38... Nxb5 {[#]} 39. Rxb5 $1 {[%mdl 512]} Rhg8 40. Ra5 $18) (38... Qh4 {war angesagt.} 39. bxc6 bxc6 40. Rxc6 Kh6) 39. bxc6 {[%emt 0:00:48]} Nxe5 {[%emt 0:02:00]} (39... bxc6 $142 40. Nxc6 Qh4 41. Nxd8 Rxd8 42. Rb7+ Kh6) 40. Nxe5 {[%emt 0:00:00]} Kh6 {[%emt 0:00:00]} 41. Rxb7 $18 {[%emt 0:01:21]} 1-0